[Event "Titled Tuesday Blitz August 22 Early 2023"]
[White "Svane, Rasmus"]
[Black "Elsa167"]
[WhiteFideId "4657101"]
[WhiteElo "2999"]
[BlackElo "2881"]
[Result "1/2-1/2"]
[Round "9"]
[TimeControl "180+1"]
[Date "2023.08.22"]
[WhiteClock "0:00:07"]
[BlackClock "0:00:05"]
[Board "9"]

1. Nf3 {[%clk 0:03:00]}  Nf6 {[%clk 0:02:59]} 2. g3 {[%clk 0:02:59]}  e6 {[%clk 0:03:00]} 3. Bg2 {[%clk 0:02:59]}  d5 {[%clk 0:03:00]} 4. O-O {[%clk 0:02:59]}  Be7 {[%clk 0:03:01]} 5. c4 {[%clk 0:02:58]}  O-O {[%clk 0:03:02]} 6. b3 {[%clk 0:02:57]}  a5 {[%clk 0:03:02]} 7. Nc3 {[%clk 0:02:56]}  c6 {[%clk 0:03:02]} 8. Bb2 {[%clk 0:02:54]}  b6 {[%clk 0:03:01]} 9. Qc2 {[%clk 0:02:53]}  Ba6 {[%clk 0:03:00]} 10. d3 {[%clk 0:02:44]}  b5 {[%clk 0:02:51]} 11. Rfd1 {[%clk 0:02:42]}  Qb6 {[%clk 0:02:50]} 12. Rac1 {[%clk 0:02:40]}  Nbd7 {[%clk 0:02:49]} 13. e4 {[%clk 0:02:20]}  bxc4 {[%clk 0:01:36]} 14. dxc4 {[%clk 0:02:15]}  dxc4 {[%clk 0:01:34]} 15. bxc4 {[%clk 0:01:55]}  e5 {[%clk 0:01:30]} 16. Na4 {[%clk 0:01:39]}  Qc7 {[%clk 0:01:26]} 17. c5 {[%clk 0:01:40]}  Bb5 {[%clk 0:01:17]} 18. Nb6 {[%clk 0:01:39]}  Rad8 {[%clk 0:00:49]} 19. Nxd7 {[%clk 0:01:32]}  Nxd7 {[%clk 0:00:49]} 20. a4 {[%clk 0:01:26]}  Ba6 {[%clk 0:00:49]} 21. Bh3 {[%clk 0:01:27]}  Nxc5 {[%clk 0:00:45]} 22. Bxe5 {[%clk 0:01:24]}  Rxd1+ {[%clk 0:00:26]} 23. Rxd1 {[%clk 0:01:21]}  Qb6 {[%clk 0:00:26]} 24. Rb1 {[%clk 0:01:13]}  Qd8 {[%clk 0:00:23]} 25. Rd1 {[%clk 0:01:04]}  Qb6 {[%clk 0:00:22]} 26. Nd4 {[%clk 0:00:49]}  Rd8 {[%clk 0:00:20]} 27. Nf5 {[%clk 0:00:48]}  Bf8 {[%clk 0:00:18]} 28. Rxd8 {[%clk 0:00:25]}  Qxd8 {[%clk 0:00:19]} 29. Bf1 {[%clk 0:00:19]}  Bxf1 {[%clk 0:00:19]} 30. Kxf1 {[%clk 0:00:20]}  Qd3+ {[%clk 0:00:14]} 31. Qxd3 {[%clk 0:00:20]}  Nxd3 {[%clk 0:00:15]} 32. Bc3 {[%clk 0:00:21]}  Nc5 {[%clk 0:00:12]} 33. Bxa5 {[%clk 0:00:20]}  Nxa4 {[%clk 0:00:12]} 34. Ke2 {[%clk 0:00:20]}  Nc5 {[%clk 0:00:12]} 35. f3 {[%clk 0:00:20]}  g6 {[%clk 0:00:12]} 36. Ne3 {[%clk 0:00:21]}  Ne6 {[%clk 0:00:11]} 37. Bc3 {[%clk 0:00:21]}  Bc5 {[%clk 0:00:11]} 38. Ng4 {[%clk 0:00:20]}  Kf8 {[%clk 0:00:09]} 39. Nf6 {[%clk 0:00:20]}  h5 {[%clk 0:00:08]} 40. Nd7+ {[%clk 0:00:21]}  Ke8 {[%clk 0:00:08]} 41. Nxc5 {[%clk 0:00:20]}  Nxc5 {[%clk 0:00:09]} 42. Ke3 {[%clk 0:00:21]}  Ne6 {[%clk 0:00:10]} 43. h4 {[%clk 0:00:20]}  Kd7 {[%clk 0:00:10]} 44. g4 {[%clk 0:00:20]}  Kd6 {[%clk 0:00:08]} 45. gxh5 {[%clk 0:00:20]}  gxh5 {[%clk 0:00:09]} 46. f4 {[%clk 0:00:20]}  c5 {[%clk 0:00:06]} 47. f5 {[%clk 0:00:21]}  Nc7 {[%clk 0:00:07]} 48. Kf4 {[%clk 0:00:21]}  Nb5 {[%clk 0:00:07]} 49. Be5+ {[%clk 0:00:20]}  Ke7 {[%clk 0:00:07]} 50. Kg5 {[%clk 0:00:20]}  c4 {[%clk 0:00:07]} 51. Kxh5 {[%clk 0:00:15]}  c3 {[%clk 0:00:07]} 52. Kh6 {[%clk 0:00:15]}  f6 {[%clk 0:00:04]} 53. Bf4 {[%clk 0:00:14]}  Kf7 {[%clk 0:00:05]} 54. e5 {[%clk 0:00:13]}  fxe5 {[%clk 0:00:04]} 55. Bxe5 {[%clk 0:00:14]}  c2 {[%clk 0:00:05]} 56. Bb2 {[%clk 0:00:14]}  Nd4 {[%clk 0:00:05]} 57. Kg5 {[%clk 0:00:11]}  Ne2 {[%clk 0:00:03]} 58. h5 {[%clk 0:00:12]}  c1=Q+ {[%clk 0:00:03]} 59. Bxc1 {[%clk 0:00:12]}  Nxc1 {[%clk 0:00:04]} 60. h6 {[%clk 0:00:13]}  Nd3 {[%clk 0:00:04]} 61. f6 {[%clk 0:00:13]}  Ne5 {[%clk 0:00:04]} 62. h7 {[%clk 0:00:10]}  Ng6 {[%clk 0:00:04]} 63. Kf5 {[%clk 0:00:10]}  Nh8 {[%clk 0:00:04]} 64. Kg5 {[%clk 0:00:10]}  Ng6 {[%clk 0:00:05]} 65. Kh6 {[%clk 0:00:07]}  Kxf6 {[%clk 0:00:04]} 66. h8=Q+ {[%clk 0:00:07]}  Nxh8 {[%clk 0:00:05]} 1/2-1/2


[Site "https://www.chess.com"]

[Event "Titled Tuesday Blitz August 22 Early 2023"]
[White "Kevlishvili, Robby"]
[Black "CrazyAdvenTures"]
[WhiteFideId "1040634"]
[WhiteElo "2983"]
[BlackElo "2696"]
[Result "0-1"]
[Round "9"]
[TimeControl "180+1"]
[Date "2023.08.22"]
[WhiteClock "0:00:03"]
[BlackClock "0:00:06"]
[Board "10"]

1. e4 {[%clk 0:02:56]}  e5 {[%clk 0:02:58]} 2. Nf3 {[%clk 0:02:54]}  Nc6 {[%clk 0:02:59]} 3. Bb5 {[%clk 0:02:53]}  f5 {[%clk 0:02:58]} 4. Nc3 {[%clk 0:02:52]}  fxe4 {[%clk 0:02:54]} 5. Nxe4 {[%clk 0:02:53]}  Nf6 {[%clk 0:02:54]} 6. Qe2 {[%clk 0:02:52]}  d5 {[%clk 0:02:54]} 7. Nxf6+ {[%clk 0:02:44]}  gxf6 {[%clk 0:02:55]} 8. d4 {[%clk 0:02:36]}  e4 {[%clk 0:02:54]} 9. Nh4 {[%clk 0:02:35]}  Qe7 {[%clk 0:02:39]} 10. O-O {[%clk 0:02:10]}  Bd7 {[%clk 0:02:27]} 11. Bxc6 {[%clk 0:02:09]}  bxc6 {[%clk 0:01:57]} 12. Bf4 {[%clk 0:02:05]}  Be6 {[%clk 0:01:39]} 13. c4 {[%clk 0:02:01]}  Bg7 {[%clk 0:01:33]} 14. g3 {[%clk 0:01:59]}  O-O {[%clk 0:01:29]} 15. Ng2 {[%clk 0:01:53]}  f5 {[%clk 0:01:19]} 16. Rfd1 {[%clk 0:01:52]}  dxc4 {[%clk 0:01:19]} 17. Ne3 {[%clk 0:01:51]}  Rfd8 {[%clk 0:01:10]} 18. Be5 {[%clk 0:01:01]}  Bxe5 {[%clk 0:01:10]} 19. dxe5 {[%clk 0:01:02]}  Rd3 {[%clk 0:01:10]} 20. Ng2 {[%clk 0:01:02]}  Bf7 {[%clk 0:00:40]} 21. Nf4 {[%clk 0:00:57]}  Rxd1+ {[%clk 0:00:35]} 22. Rxd1 {[%clk 0:00:58]}  Qxe5 {[%clk 0:00:36]} 23. Rd7 {[%clk 0:00:49]}  Rb8 {[%clk 0:00:25]} 24. Rd2 {[%clk 0:00:27]}  Qf6 {[%clk 0:00:17]} 25. Kg2 {[%clk 0:00:24]}  Rd8 {[%clk 0:00:17]} 26. Rxd8+ {[%clk 0:00:23]}  Qxd8 {[%clk 0:00:18]} 27. Qe3 {[%clk 0:00:23]}  a5 {[%clk 0:00:05]} 28. h4 {[%clk 0:00:21]}  Qd1 {[%clk 0:00:04]} 29. Qc3 {[%clk 0:00:16]}  Bd5 {[%clk 0:00:03]} 30. Qe3 {[%clk 0:00:13]}  Qf3+ {[%clk 0:00:03]} 31. Qxf3 {[%clk 0:00:13]}  exf3+ {[%clk 0:00:04]} 32. Kf1 {[%clk 0:00:12]}  c3 {[%clk 0:00:03]} 33. bxc3 {[%clk 0:00:08]}  Bxa2 {[%clk 0:00:03]} 34. Ke1 {[%clk 0:00:09]}  Bc4 {[%clk 0:00:04]} 35. Kd2 {[%clk 0:00:10]}  a4 {[%clk 0:00:04]} 36. Kc1 {[%clk 0:00:10]}  a3 {[%clk 0:00:05]} 37. Kb1 {[%clk 0:00:10]}  a2+ {[%clk 0:00:05]} 38. Kb2 {[%clk 0:00:10]}  Kf7 {[%clk 0:00:06]} 39. Ka1 {[%clk 0:00:10]}  Kf6 {[%clk 0:00:06]} 40. Kb2 {[%clk 0:00:10]}  Ke5 {[%clk 0:00:06]} 41. Ka1 {[%clk 0:00:10]}  Ke4 {[%clk 0:00:07]} 42. Kb2 {[%clk 0:00:11]}  Bf7 {[%clk 0:00:07]} 43. Ka1 {[%clk 0:00:11]}  h6 {[%clk 0:00:07]} 44. Kb2 {[%clk 0:00:11]}  Bb3 {[%clk 0:00:06]} 45. Ka1 {[%clk 0:00:11]}  Ke5 {[%clk 0:00:07]} 46. Kb2 {[%clk 0:00:11]}  Kd6 {[%clk 0:00:08]} 47. Ka1 {[%clk 0:00:12]}  Kc5 {[%clk 0:00:08]} 48. Kb2 {[%clk 0:00:11]}  Kc4 {[%clk 0:00:09]} 49. Ne6 {[%clk 0:00:05]}  a1=Q+ {[%clk 0:00:04]} 50. Kxa1 {[%clk 0:00:05]}  Kxc3 {[%clk 0:00:05]} 51. Ng7 {[%clk 0:00:04]}  Bc2 {[%clk 0:00:05]} 52. Ne6 {[%clk 0:00:02]}  Kd2 {[%clk 0:00:05]} 53. Nd4 {[%clk 0:00:02]}  Be4 {[%clk 0:00:05]} 54. Kb2 {[%clk 0:00:03]}  Ke1 {[%clk 0:00:06]} 55. g4 {[%clk 0:00:03]}  fxg4 {[%clk 0:00:06]} 0-1


[Site "https://www.chess.com"]

[Event "Titled Tuesday Blitz August 22 Early 2023"]
[White "Ibrahimli, Murad"]
[Black "Grischuk, Alexander"]
[WhiteFideId "13410229"]
[BlackFideId "4126025"]
[WhiteElo "2866"]
[BlackElo "3028"]
[Result "1-0"]
[Round "9"]
[TimeControl "180+1"]
[Date "2023.08.22"]
[WhiteClock "0:00:14"]
[BlackClock "0:00:00"]
[Board "12"]

1. d4 {[%clk 0:03:00]}  e6 {[%clk 0:02:59]} 2. c4 {[%clk 0:03:00]}  b6 {[%clk 0:02:59]} 3. a3 {[%clk 0:02:59]}  Bb7 {[%clk 0:02:58]} 4. Nc3 {[%clk 0:03:00]}  f5 {[%clk 0:02:57]} 5. Bf4 {[%clk 0:02:56]}  Nf6 {[%clk 0:02:56]} 6. e3 {[%clk 0:02:56]}  Be7 {[%clk 0:02:53]} 7. h3 {[%clk 0:02:56]}  O-O {[%clk 0:02:53]} 8. Nf3 {[%clk 0:02:57]}  Ne4 {[%clk 0:02:48]} 9. Bd3 {[%clk 0:02:34]}  Bf6 {[%clk 0:02:44]} 10. Qc2 {[%clk 0:02:15]}  Nxc3 {[%clk 0:02:41]} 11. bxc3 {[%clk 0:02:15]}  Bxf3 {[%clk 0:02:22]} 12. gxf3 {[%clk 0:02:10]}  Nc6 {[%clk 0:02:23]} 13. Bg3 {[%clk 0:02:05]}  Qe7 {[%clk 0:02:03]} 14. h4 {[%clk 0:02:03]}  Na5 {[%clk 0:01:49]} 15. h5 {[%clk 0:02:00]}  c5 {[%clk 0:01:41]} 16. d5 {[%clk 0:01:57]}  Nb7 {[%clk 0:01:15]} 17. Rd1 {[%clk 0:01:51]}  Bg5 {[%clk 0:01:06]} 18. d6 {[%clk 0:01:36]}  Qf6 {[%clk 0:00:52]} 19. f4 {[%clk 0:01:34]}  Bh6 {[%clk 0:00:52]} 20. Be2 {[%clk 0:01:31]}  Na5 {[%clk 0:00:48]} 21. Kf1 {[%clk 0:01:31]}  Rac8 {[%clk 0:00:43]} 22. Kg2 {[%clk 0:01:29]}  Qf7 {[%clk 0:00:41]} 23. Qa4 {[%clk 0:01:27]}  Rfe8 {[%clk 0:00:40]} 24. Qb5 {[%clk 0:01:25]}  Nc6 {[%clk 0:00:35]} 25. Bf3 {[%clk 0:01:22]}  Kh8 {[%clk 0:00:30]} 26. Rh4 {[%clk 0:01:02]}  Qf6 {[%clk 0:00:26]} 27. Qb2 {[%clk 0:00:50]}  Na5 {[%clk 0:00:25]} 28. Be2 {[%clk 0:00:49]}  Qf8 {[%clk 0:00:23]} 29. Rhh1 {[%clk 0:00:46]}  Rc6 {[%clk 0:00:23]} 30. Qd2 {[%clk 0:00:45]}  Nb7 {[%clk 0:00:22]} 31. Bf3 {[%clk 0:00:45]}  Rxd6 {[%clk 0:00:22]} 32. Qc2 {[%clk 0:00:45]}  Na5 {[%clk 0:00:21]} 33. Qa4 {[%clk 0:00:40]}  Nc6 {[%clk 0:00:14]} 34. Qa6 {[%clk 0:00:34]}  e5 {[%clk 0:00:09]} 35. Bxc6 {[%clk 0:00:20]}  Rxc6 {[%clk 0:00:04]} 36. Qxa7 {[%clk 0:00:20]}  exf4 {[%clk 0:00:04]} 37. exf4 {[%clk 0:00:21]}  Rd6 {[%clk 0:00:04]} 38. Rhe1 {[%clk 0:00:19]}  Rde6 {[%clk 0:00:03]} 39. Rxe6 {[%clk 0:00:19]}  dxe6 {[%clk 0:00:04]} 40. Qxb6 {[%clk 0:00:19]}  e5 {[%clk 0:00:04]} 41. Qd6 {[%clk 0:00:15]}  exf4 {[%clk 0:00:04]} 42. Qxf8+ {[%clk 0:00:15]}  Rxf8 {[%clk 0:00:03]} 43. Bh4 {[%clk 0:00:16]}  Kg8 {[%clk 0:00:00]} 44. Rd8 {[%clk 0:00:14]} 1-0


[Site "https://www.chess.com"]

[Event "Titled Tuesday Blitz August 22 Early 2023"]
[White "Tari, Aryan"]
[Black "Pakleza, Zbigniew"]
[WhiteFideId "1510045"]
[BlackFideId "1119290"]
[WhiteElo "2944"]
[BlackElo "2842"]
[Result "0-1"]
[Round "9"]
[TimeControl "180+1"]
[Date "2023.08.22"]
[WhiteClock "0:00:00"]
[BlackClock "0:00:08"]
[Board "15"]

1. e4 {[%clk 0:02:47]}  d6 {[%clk 0:03:00]} 2. d4 {[%clk 0:02:47]}  Nf6 {[%clk 0:03:01]} 3. Bd3 {[%clk 0:02:45]}  e5 {[%clk 0:03:01]} 4. c3 {[%clk 0:02:44]}  d5 {[%clk 0:03:01]} 5. exd5 {[%clk 0:02:37]}  exd4 {[%clk 0:02:59]} 6. c4 {[%clk 0:02:37]}  c6 {[%clk 0:02:53]} 7. Nf3 {[%clk 0:02:24]}  Bb4+ {[%clk 0:02:51]} 8. Bd2 {[%clk 0:02:21]}  Bxd2+ {[%clk 0:02:34]} 9. Nbxd2 {[%clk 0:02:13]}  O-O {[%clk 0:02:34]} 10. O-O {[%clk 0:02:02]}  cxd5 {[%clk 0:02:32]} 11. Nxd4 {[%clk 0:02:02]}  Nc6 {[%clk 0:02:10]} 12. Nxc6 {[%clk 0:01:57]}  bxc6 {[%clk 0:02:11]} 13. Qc2 {[%clk 0:01:49]}  h6 {[%clk 0:01:59]} 14. cxd5 {[%clk 0:01:38]}  cxd5 {[%clk 0:01:56]} 15. Nb3 {[%clk 0:01:33]}  Qb6 {[%clk 0:01:49]} 16. Rac1 {[%clk 0:01:20]}  Be6 {[%clk 0:01:42]} 17. Qc5 {[%clk 0:01:15]}  Rfb8 {[%clk 0:01:33]} 18. Rc2 {[%clk 0:01:12]}  Ne4 {[%clk 0:01:19]} 19. Qxb6 {[%clk 0:01:12]}  axb6 {[%clk 0:01:17]} 20. a3 {[%clk 0:00:16]}  Nc5 {[%clk 0:01:09]} 21. Nc1 {[%clk 0:00:17]}  Rc8 {[%clk 0:00:58]} 22. Bb5 {[%clk 0:00:17]}  d4 {[%clk 0:00:40]} 23. Rd2 {[%clk 0:00:17]}  Rd8 {[%clk 0:00:25]} 24. Rfd1 {[%clk 0:00:17]}  Nb3 {[%clk 0:00:25]} 25. Nxb3 {[%clk 0:00:14]}  Bxb3 {[%clk 0:00:26]} 26. Rc1 {[%clk 0:00:13]}  Rac8 {[%clk 0:00:24]} 27. Rxc8 {[%clk 0:00:11]}  Rxc8 {[%clk 0:00:25]} 28. Rxd4 {[%clk 0:00:12]}  Rc1+ {[%clk 0:00:25]} 29. Bf1 {[%clk 0:00:12]}  b5 {[%clk 0:00:17]} 30. Rd8+ {[%clk 0:00:04]}  Kh7 {[%clk 0:00:17]} 31. Rd4 {[%clk 0:00:02]}  Bc4 {[%clk 0:00:16]} 32. Rxc4 {[%clk 0:00:02]}  bxc4 {[%clk 0:00:17]} 33. g3 {[%clk 0:00:03]}  Kg6 {[%clk 0:00:09]} 34. Kg2 {[%clk 0:00:03]}  Kf6 {[%clk 0:00:09]} 35. Be2 {[%clk 0:00:03]}  Ke5 {[%clk 0:00:10]} 36. a4 {[%clk 0:00:02]}  Kd4 {[%clk 0:00:10]} 37. a5 {[%clk 0:00:03]}  Rc2 {[%clk 0:00:08]} 38. Bd1 {[%clk 0:00:00]}  Rxb2 {[%clk 0:00:08]} 0-1


[Site "https://www.chess.com"]

[Event "Titled Tuesday Blitz August 22 Early 2023"]
[White "Kramnik, Vladimir"]
[Black "Kosakowski, Jakub"]
[WhiteFideId "4101588"]
[BlackFideId "1185080"]
[WhiteElo "2940"]
[BlackElo "2812"]
[Result "0-1"]
[Round "9"]
[TimeControl "180+1"]
[Date "2023.08.22"]
[WhiteClock "0:00:00"]
[BlackClock "0:00:24"]
[Board "17"]

1. e4 {[%clk 0:03:00]}  c6 {[%clk 0:02:53]} 2. d4 {[%clk 0:02:59]}  d5 {[%clk 0:02:53]} 3. Nd2 {[%clk 0:03:00]}  dxe4 {[%clk 0:02:53]} 4. Nxe4 {[%clk 0:03:00]}  Nf6 {[%clk 0:02:54]} 5. Nxf6+ {[%clk 0:03:00]}  exf6 {[%clk 0:02:54]} 6. c3 {[%clk 0:03:00]}  Bd6 {[%clk 0:02:55]} 7. Bd3 {[%clk 0:03:01]}  O-O {[%clk 0:02:55]} 8. Ne2 {[%clk 0:03:01]}  Re8 {[%clk 0:02:55]} 9. O-O {[%clk 0:03:02]}  Nd7 {[%clk 0:02:54]} 10. Ng3 {[%clk 0:03:02]}  Nf8 {[%clk 0:02:46]} 11. a4 {[%clk 0:03:01]}  Bc7 {[%clk 0:02:43]} 12. f4 {[%clk 0:02:56]}  Ng6 {[%clk 0:02:36]} 13. Qh5 {[%clk 0:02:44]}  Qd5 {[%clk 0:02:25]} 14. Qxd5 {[%clk 0:02:30]}  cxd5 {[%clk 0:02:26]} 15. f5 {[%clk 0:02:28]}  Ne7 {[%clk 0:02:19]} 16. Bf4 {[%clk 0:02:09]}  Bxf4 {[%clk 0:02:15]} 17. Rxf4 {[%clk 0:02:10]}  Bd7 {[%clk 0:02:16]} 18. a5 {[%clk 0:02:01]}  Nc8 {[%clk 0:02:14]} 19. Rff1 {[%clk 0:01:42]}  Nd6 {[%clk 0:02:14]} 20. Rfe1 {[%clk 0:01:39]}  Kf8 {[%clk 0:02:11]} 21. Kf2 {[%clk 0:01:38]}  Rxe1 {[%clk 0:02:07]} 22. Rxe1 {[%clk 0:01:37]}  Rc8 {[%clk 0:02:07]} 23. Ke3 {[%clk 0:01:31]}  Bb5 {[%clk 0:01:50]} 24. Bxb5 {[%clk 0:01:29]}  Nxb5 {[%clk 0:01:50]} 25. Kd3 {[%clk 0:01:28]}  Rc6 {[%clk 0:01:44]} 26. Nh5 {[%clk 0:01:22]}  Ra6 {[%clk 0:01:36]} 27. Nf4 {[%clk 0:01:13]}  Nc7 {[%clk 0:01:31]} 28. Ra1 {[%clk 0:01:04]}  Ke7 {[%clk 0:01:25]} 29. b3 {[%clk 0:00:59]}  b6 {[%clk 0:01:21]} 30. Re1+ {[%clk 0:00:39]}  Kd7 {[%clk 0:01:07]} 31. axb6 {[%clk 0:00:39]}  axb6 {[%clk 0:01:07]} 32. Nh5 {[%clk 0:00:34]}  Ne8 {[%clk 0:01:03]} 33. Re2 {[%clk 0:00:26]}  Ra3 {[%clk 0:01:00]} 34. Rb2 {[%clk 0:00:21]}  Ra1 {[%clk 0:01:00]} 35. c4 {[%clk 0:00:19]}  Rd1+ {[%clk 0:00:55]} 36. Kc3 {[%clk 0:00:19]}  Nd6 {[%clk 0:00:52]} 37. Nxg7 {[%clk 0:00:13]}  Ne4+ {[%clk 0:00:52]} 38. Kb4 {[%clk 0:00:12]}  Rxd4 {[%clk 0:00:52]} 39. Rc2 {[%clk 0:00:08]}  Kd6 {[%clk 0:00:37]} 40. Kb5 {[%clk 0:00:07]}  dxc4 {[%clk 0:00:37]} 41. bxc4 {[%clk 0:00:07]}  Kc7 {[%clk 0:00:36]} 42. Nh5 {[%clk 0:00:07]}  Nd6+ {[%clk 0:00:35]} 43. Kb4 {[%clk 0:00:07]}  Kc6 {[%clk 0:00:30]} 44. Nxf6 {[%clk 0:00:05]}  b5 {[%clk 0:00:30]} 45. Nxh7 {[%clk 0:00:05]}  bxc4 {[%clk 0:00:30]} 46. Ng5 {[%clk 0:00:04]}  Kd5 {[%clk 0:00:29]} 47. Nf3 {[%clk 0:00:03]}  Rf4 {[%clk 0:00:25]} 48. Rd2+ {[%clk 0:00:02]}  Kc6 {[%clk 0:00:25]} 49. h4 {[%clk 0:00:00]}  c3+ {[%clk 0:00:24]} 0-1


[Site "https://www.chess.com"]

[Event "Titled Tuesday Blitz August 22 Early 2023"]
[White "Adewumi, Tanitoluwa"]
[Black "Donchenko, Alexander"]
[WhiteFideId "30966396"]
[BlackFideId "24603295"]
[WhiteElo "2805"]
[BlackElo "2937"]
[Result "0-1"]
[Round "9"]
[TimeControl "180+1"]
[Date "2023.08.22"]
[WhiteClock "0:00:00"]
[BlackClock "0:01:34"]
[Board "18"]

1. e4 {[%clk 0:02:54]}  c6 {[%clk 0:03:00]} 2. d4 {[%clk 0:02:54]}  d5 {[%clk 0:03:00]} 3. exd5 {[%clk 0:02:55]}  cxd5 {[%clk 0:03:01]} 4. Bd3 {[%clk 0:02:55]}  Nf6 {[%clk 0:03:02]} 5. c3 {[%clk 0:02:55]}  Bg4 {[%clk 0:03:02]} 6. Qb3 {[%clk 0:02:54]}  Qc7 {[%clk 0:03:02]} 7. h3 {[%clk 0:02:54]}  Bd7 {[%clk 0:03:03]} 8. Ne2 {[%clk 0:02:50]}  e6 {[%clk 0:02:59]} 9. Bf4 {[%clk 0:02:50]}  Qb6 {[%clk 0:02:56]} 10. Qxb6 {[%clk 0:02:46]}  axb6 {[%clk 0:02:57]} 11. Nd2 {[%clk 0:02:46]}  b5 {[%clk 0:02:48]} 12. O-O {[%clk 0:02:18]}  b4 {[%clk 0:02:47]} 13. c4 {[%clk 0:01:59]}  Nc6 {[%clk 0:02:46]} 14. Rfc1 {[%clk 0:01:54]}  Be7 {[%clk 0:02:42]} 15. g4 {[%clk 0:01:39]}  h6 {[%clk 0:02:39]} 16. Nb3 {[%clk 0:01:29]}  O-O {[%clk 0:02:35]} 17. Nc5 {[%clk 0:01:25]}  Bxc5 {[%clk 0:02:25]} 18. dxc5 {[%clk 0:01:26]}  d4 {[%clk 0:02:23]} 19. Bd6 {[%clk 0:01:21]}  Rfe8 {[%clk 0:02:20]} 20. f4 {[%clk 0:01:19]}  e5 {[%clk 0:02:14]} 21. fxe5 {[%clk 0:01:08]}  Nxe5 {[%clk 0:02:15]} 22. Bxe5 {[%clk 0:01:03]}  Rxe5 {[%clk 0:02:16]} 23. Nxd4 {[%clk 0:00:43]}  h5 {[%clk 0:02:16]} 24. gxh5 {[%clk 0:00:34]}  Nxh5 {[%clk 0:02:08]} 25. Re1 {[%clk 0:00:23]}  Rxc5 {[%clk 0:02:04]} 26. Re7 {[%clk 0:00:20]}  Bxh3 {[%clk 0:02:04]} 27. Rae1 {[%clk 0:00:17]}  g6 {[%clk 0:01:57]} 28. R1e3 {[%clk 0:00:11]}  Nf4 {[%clk 0:01:56]} 29. Be4 {[%clk 0:00:04]}  Rxc4 {[%clk 0:01:54]} 30. Ne2 {[%clk 0:00:02]}  Nxe2+ {[%clk 0:01:47]} 31. Rxe2 {[%clk 0:00:03]}  Be6 {[%clk 0:01:39]} 32. Bxg6 {[%clk 0:00:02]}  Rg4+ {[%clk 0:01:40]} 33. Rg2 {[%clk 0:00:02]}  Rxg2+ {[%clk 0:01:40]} 34. Kxg2 {[%clk 0:00:03]}  Rxa2 {[%clk 0:01:38]} 35. Be4 {[%clk 0:00:02]}  Rxb2+ {[%clk 0:01:38]} 36. Kf3 {[%clk 0:00:03]}  b5 {[%clk 0:01:37]} 37. Rb7 {[%clk 0:00:03]}  Bc4 {[%clk 0:01:38]} 38. Kf4 {[%clk 0:00:03]}  b3 {[%clk 0:01:37]} 39. Ke5 {[%clk 0:00:04]}  Kg7 {[%clk 0:01:38]} 40. Kd4 {[%clk 0:00:02]}  Re2 {[%clk 0:01:36]} 41. Ra7 {[%clk 0:00:00]}  b2 {[%clk 0:01:34]} 0-1


[Site "https://www.chess.com"]

[Event "Titled Tuesday Blitz August 22 Early 2023"]
[White "Kamsky, Gata"]
[Black "Gorovets, Andrey"]
[WhiteFideId "2000024"]
[BlackFideId "13504037"]
[WhiteElo "2930"]
[BlackElo "2800"]
[Result "1/2-1/2"]
[Round "9"]
[TimeControl "180+1"]
[Date "2023.08.22"]
[WhiteClock "0:00:14"]
[BlackClock "0:00:11"]
[Board "19"]

1. d4 {[%clk 0:03:00]}  Nf6 {[%clk 0:02:55]} 2. Bf4 {[%clk 0:02:59]}  d5 {[%clk 0:02:52]} 3. e3 {[%clk 0:02:58]}  c5 {[%clk 0:02:52]} 4. c3 {[%clk 0:02:58]}  Nc6 {[%clk 0:02:48]} 5. Nd2 {[%clk 0:02:58]}  cxd4 {[%clk 0:02:39]} 6. exd4 {[%clk 0:02:56]}  Bf5 {[%clk 0:02:34]} 7. Ngf3 {[%clk 0:02:55]}  e6 {[%clk 0:02:32]} 8. Bb5 {[%clk 0:02:55]}  Bd6 {[%clk 0:02:29]} 9. Bxd6 {[%clk 0:02:54]}  Qxd6 {[%clk 0:02:28]} 10. O-O {[%clk 0:02:54]}  O-O {[%clk 0:02:20]} 11. Re1 {[%clk 0:02:54]}  Nd7 {[%clk 0:02:00]} 12. a4 {[%clk 0:02:52]}  h6 {[%clk 0:01:57]} 13. a5 {[%clk 0:02:50]}  a6 {[%clk 0:01:57]} 14. Bf1 {[%clk 0:02:43]}  Qc7 {[%clk 0:01:56]} 15. Qa4 {[%clk 0:02:42]}  b5 {[%clk 0:01:44]} 16. axb6 {[%clk 0:02:41]}  Nxb6 {[%clk 0:01:45]} 17. Qa3 {[%clk 0:02:39]}  Rfb8 {[%clk 0:01:40]} 18. b4 {[%clk 0:02:30]}  a5 {[%clk 0:01:38]} 19. b5 {[%clk 0:02:30]}  Nd8 {[%clk 0:01:34]} 20. Rec1 {[%clk 0:01:54]}  Nb7 {[%clk 0:01:27]} 21. c4 {[%clk 0:01:52]}  dxc4 {[%clk 0:01:28]} 22. Nxc4 {[%clk 0:01:51]}  Nxc4 {[%clk 0:01:25]} 23. Rxc4 {[%clk 0:01:49]}  Qd6 {[%clk 0:01:24]} 24. Ne5 {[%clk 0:01:46]}  Qxa3 {[%clk 0:01:14]} 25. Rxa3 {[%clk 0:01:45]}  Nd6 {[%clk 0:01:15]} 26. Rc5 {[%clk 0:01:45]}  Be4 {[%clk 0:01:02]} 27. Nc6 {[%clk 0:01:29]}  Bxc6 {[%clk 0:00:55]} 28. bxc6 {[%clk 0:01:28]}  a4 {[%clk 0:00:51]} 29. d5 {[%clk 0:01:18]}  Rb3 {[%clk 0:00:39]} 30. Ra1 {[%clk 0:01:17]}  a3 {[%clk 0:00:34]} 31. dxe6 {[%clk 0:01:16]}  fxe6 {[%clk 0:00:34]} 32. g3 {[%clk 0:01:10]}  a2 {[%clk 0:00:32]} 33. Rc2 {[%clk 0:01:09]}  Rba3 {[%clk 0:00:26]} 34. Bh3 {[%clk 0:01:06]}  Kf7 {[%clk 0:00:21]} 35. c7 {[%clk 0:01:03]}  Rc8 {[%clk 0:00:17]} 36. Re2 {[%clk 0:00:36]}  Nf5 {[%clk 0:00:17]} 37. Rexa2 {[%clk 0:00:29]}  Rxa2 {[%clk 0:00:17]} 38. Rxa2 {[%clk 0:00:29]}  Rxc7 {[%clk 0:00:18]} 39. Bg4 {[%clk 0:00:28]}  Kf6 {[%clk 0:00:18]} 40. Kg2 {[%clk 0:00:27]}  g6 {[%clk 0:00:18]} 41. h4 {[%clk 0:00:27]}  h5 {[%clk 0:00:18]} 42. Bf3 {[%clk 0:00:27]}  Nd4 {[%clk 0:00:18]} 43. Be4 {[%clk 0:00:27]}  Rc4 {[%clk 0:00:16]} 44. Ra8 {[%clk 0:00:25]}  Rc7 {[%clk 0:00:15]} 45. Rf8+ {[%clk 0:00:24]}  Rf7 {[%clk 0:00:15]} 46. Rg8 {[%clk 0:00:23]}  Rg7 {[%clk 0:00:14]} 47. Rd8 {[%clk 0:00:24]}  Nf5 {[%clk 0:00:14]} 48. Rd2 {[%clk 0:00:22]}  Ra7 {[%clk 0:00:14]} 49. Rb2 {[%clk 0:00:19]}  Ra4 {[%clk 0:00:13]} 50. Bf3 {[%clk 0:00:19]}  Ra6 {[%clk 0:00:12]} 51. Be2 {[%clk 0:00:18]}  Rd6 {[%clk 0:00:11]} 52. Ra2 {[%clk 0:00:18]}  Nd4 {[%clk 0:00:11]} 53. Bd3 {[%clk 0:00:14]}  Nf5 {[%clk 0:00:11]} 1/2-1/2


[Site "https://www.chess.com"]